fUSD/lending_fUSD_20250109
["ID","MTS","AMOUNT","RATE_DAILY","PERIOD"]
[348312208,1736441463491,-500.0,0.00010618,2]
[348312209,1736441463501,-2227.16,0.00010618,2]
[348312210,1736441463511,-500.0,0.00010618,2]
[348312211,1736441463520,-1176.86,0.00010618,2]
[348312212,1736441463530,-500.0,0.00010618,2]
[348312213,1736441463540,-500.0,0.00010618,2]
[348312214,1736441463550,-500.0,0.00010618,2]
[348312215,1736441463559,-500.0,0.00010618,2]
[348312216,1736441463569,-500.0,0.00010618,2]
[348312217,1736441463580,-500.0,0.00010618,2]
[348312218,1736441463590,-500.0,0.00010618,2]
[348312219,1736441463599,-500.0,0.00010618,2]
[348312220,1736441463608,-1519.67,0.00010618,2]
[348312221,1736441463618,-500.0,0.00010618,2]
[348312222,1736441463628,-500.0,0.00010618,2]
[348312223,1736441463637,-2093.33,0.00010618,2]
[348312224,1736441463814,-741.11,0.00010618,2]
[348312225,1736441463825,-370.13029584,0.00010618,2]
[348312226,1736441463835,-500.0,0.00010618,2]
[348312227,1736441463845,-500.0,0.00010618,2]
[348312228,1736441463854,-2694.41,0.00010618,2]
[348312229,1736441463864,-581.07,0.00010618,2]
[348312230,1736441463874,-3351.45,0.00010618,2]
[348312231,1736441463883,-500.0,0.00010619,2]
[348312232,1736441463893,-500.0,0.00010619,2]
[348312233,1736441463903,-500.0,0.00010619,2]
[348312234,1736441463913,-500.0,0.00010619,2]
[348312235,1736441463922,-500.0,0.00010619,2]
[348312236,1736441463932,-500.0,0.00010619,2]
[348312237,1736441463941,-500.0,0.00010619,2]
[348312238,1736441463951,-500.0,0.00010619,2]
[348312239,1736441463961,-500.0,0.00010619,2]
[348312240,1736441463971,-500.0,0.00010619,2]
[348312241,1736441463981,-500.0,0.00010619,2]
[348312242,1736441463991,-500.0,0.00010619,2]
[348312243,1736441464001,-500.0,0.00010619,2]
[348312244,1736441464011,-500.0,0.00010619,2]
[348312245,1736441464020,-500.0,0.00010619,2]
[348312246,1736441464030,-500.0,0.00010619,2]
[348312247,1736441464039,-529.99,0.00010619,2]
[348312248,1736441464049,-500.0,0.00010619,2]
[348312249,1736441464059,-500.0,0.00010619,2]
[348312250,1736441464068,-500.0,0.00010619,2]
[348312251,1736441464079,-500.0,0.00010619,2]
[348312252,1736441464089,-564.43,0.00010619,2]
[348312253,1736441464100,-500.0,0.00010619,2]
[348312254,1736441464110,-500.0,0.00010619,2]
[348312255,1736441464119,-569.24,0.00010619,2]
[348312256,1736441464128,-500.0,0.00010619,2]
[348312257,1736441464138,-500.0,0.00010619,2]
[348312258,1736441464147,-500.0,0.00010619,2]
[348312259,1736441464158,-500.0,0.00010619,2]
[348312260,1736441464167,-523.75,0.00010619,2]
[348312261,1736441464177,-500.0,0.00010619,2]
[348312262,1736441464186,-500.0,0.00010619,2]
[348312263,1736441464196,-1090.39,0.00010619,2]
[348312264,1736441464205,-631.3,0.00010619,2]
[348312265,1736441464214,-500.0,0.00010619,2]
[348312266,1736441464224,-563.96,0.00010619,2]
[348312267,1736441464233,-500.0,0.00010619,2]
[348312268,1736441464243,-830.28,0.00010619,2]
[348312269,1736441464252,-515.92,0.00010619,2]
[348312270,1736441464261,-500.0,0.00010619,2]
[348312271,1736441464270,-611.23,0.00010619,2]
[348312272,1736441464280,-845.42,0.00010619,2]
[348312273,1736441464289,-500.0,0.00010619,2]
[348312274,1736441464298,-1107.02,0.00010619,2]
[348312275,1736441464308,-885.0,0.00010619,2]
[348312276,1736441464317,-1251.14,0.00010619,2]
[348312277,1736441464328,-744.19,0.00010619,2]
[348312278,1736441464338,-500.0,0.00010619,2]
[348312279,1736441464347,-628.0,0.00010619,2]
[348312280,1736441464356,-500.0,0.00010619,2]
[348312281,1736441464365,-1456.64,0.00010619,2]
[348312282,1736441464375,-733.74,0.00010619,2]
[348312283,1736441464384,-1452.42,0.00010619,2]
[348312284,1736441464394,-2541.11,0.00010619,2]
[348312285,1736441464404,-500.0,0.00010619,2]
[348312286,1736441464413,-1371.36,0.00010619,2]
[348312287,1736441464423,-500.0,0.00010619,2]
[348312288,1736441464432,-2305.56,0.00010619,2]
[348312289,1736441464443,-674.85,0.00010619,2]
[348312290,1736441464454,-500.0,0.00010619,2]
[348312291,1736441464464,-737.47,0.00010619,2]
[348312292,1736441464473,-500.0,0.00010619,2]
[348312293,1736441464483,-500.0,0.00010619,2]
[348312294,1736441464492,-818.96,0.00010619,2]
[348312295,1736441464503,-2187.25,0.00010619,2]
[348312296,1736441464513,-2081.65,0.00010619,2]
[348312297,1736441464522,-500.0,0.00010619,2]
[348312298,1736441464534,-2838.32,0.00010619,2]
[348312299,1736441464544,-5040.93,0.00010619,2]
[348312300,1736441464553,-1701.34,0.00010619,2]
[348312301,1736441464562,-500.0,0.00010619,2]
[348312302,1736441464572,-811.8,0.00010619,2]
[348312303,1736441464583,-2409.29,0.00010619,2]
[348312304,1736441464592,-546.38,0.00010619,2]
[348312305,1736441464601,-2443.67,0.00010619,2]
[348312306,1736441464611,-2955.96,0.00010619,2]
[348312307,1736441464621,-842.42,0.00010619,2]
[348312308,1736441464631,-807.32,0.00010619,2]
[348312309,1736441464640,-951.84,0.0001062,2]
[348312310,1736441464649,-586.19,0.0001062,2]
[348312311,1736441464659,-1510.51,0.0001062,2]
[348312312,1736441464668,-816.63,0.0001062,2]
[348312313,1736441464677,-2440.13,0.0001062,2]
[348312314,1736441464687,-2048.03,0.0001062,2]
[348312315,1736441464696,-2748.95,0.0001062,2]
[348312316,1736441464705,-2460.69,0.0001062,2]
[348312317,1736441464716,-4998.03,0.0001062,2]
[348312318,1736441464726,-12407.55,0.0001062,2]
[348312319,1736441464735,-1891.85,0.0001062,2]
[348312320,1736441464745,-754.63,0.0001062,2]
[348312321,1736441464754,-1072.78,0.0001062,2]
[348312322,1736441464764,-3521.15,0.0001062,2]
[348312323,1736441464774,-500.0,0.0001062,2]
[348312324,1736441464783,-1086.63,0.0001062,2]
[348312325,1736441464792,-1549.11,0.0001062,2]
[348312326,1736441464803,-611.89,0.0001062,2]
[348312327,1736441464814,-1000.0,0.0001062,2]
[348312328,1736441464823,-2274.81,0.0001062,2]
[348312329,1736441464834,-1114.39,0.0001062,2]
[348312330,1736441464843,-500.0,0.00010621,2]
[348312331,1736441464852,-3151.26,0.00010621,2]
[348312332,1736441464863,-2445.76,0.00010621,2]
[348312333,1736441464872,-150.0,0.00010653,2]
[348312334,1736441464882,-426.78923974,0.00010654,2]
[348312335,1736441464891,-882.79282991,0.00010655,2]
[348312336,1736441464901,-150.0,0.00010676,2]
[348312337,1736441464910,-500.0,0.00010684,2]
[348312338,1736441464920,-150.0,0.00010701,2]
[348312339,1736441464929,-882.79282991,0.00010762,2]
[348312340,1736441464939,-150.0,0.00010765,2]
[348312341,1736441464949,-255.0,0.00010773,2]
[348312342,1736441464958,-1000.0,0.00010798,2]
[348312343,1736441464967,-1000.0,0.00010798,2]
[348312344,1736441464977,-1000.0,0.00010798,2]
[348312345,1736441464986,-1000.0,0.00010798,2]
[348312346,1736441464995,-1000.0,0.00010798,2]
[348312347,1736441465004,-1000.0,0.00010798,2]
[348312348,1736441465013,-1000.0,0.00010798,2]
[348312349,1736441465023,-1000.0,0.00010798,2]
[348312350,1736441465032,-1000.0,0.00010798,2]
[348312351,1736441465041,-1000.0,0.00010798,2]
[348312352,1736441465050,-1000.0,0.00010798,2]
[348312353,1736441465059,-1000.0,0.00010798,2]
[348312354,1736441465068,-1000.0,0.00010798,2]
[348312355,1736441465079,-1000.0,0.00010798,2]
[348312356,1736441465088,-1000.0,0.00010798,2]
[348312357,1736441465097,-1000.0,0.00010798,2]
[348312358,1736441465107,-1000.0,0.00010798,2]
[348312359,1736441465116,-1000.0,0.00010798,2]
[348312360,1736441465126,-1000.0,0.00010798,2]
[348312361,1736441465135,-1000.0,0.00010798,2]
[348312362,1736441465144,-1000.0,0.00010798,2]
[348312363,1736441465153,-1000.0,0.00010798,2]
[348312364,1736441465163,-1000.0,0.00010798,2]
[348312365,1736441465172,-1000.0,0.00010798,2]
[348312366,1736441465181,-1000.0,0.00010798,2]
[348312367,1736441465191,-1000.0,0.00010798,2]
[348312368,1736441465200,-1000.0,0.00010798,2]
[348312369,1736441465209,-1000.0,0.00010798,2]
[348312370,1736441465220,-1000.0,0.00010798,2]
[348312371,1736441465229,-1000.0,0.00010798,2]
[348312372,1736441465238,-1000.0,0.00010798,2]
[348312373,1736441465247,-1000.0,0.00010798,2]
[348312374,1736441465257,-1000.0,0.00010798,2]
[348312375,1736441465266,-279.64057779,0.00010798,2]
[348312376,1736441465275,-500.0,0.00010821,2]
[348312377,1736441465286,-426.78923974,0.00010848,2]
[348312378,1736441465295,-150.0,0.00010857,2]
[348312379,1736441465305,-882.79282991,0.00010869,2]
[348312380,1736441465314,-56362.21885835,0.00010876,2]
[348312381,1736441465324,-150.0,0.00010877,2]
[348312382,1736441465335,-150.0,0.00010877,2]
[348312383,1736441465345,-108243.52764382,0.00010878,2]
[348312384,1736441465354,-223.171829,0.00010878,2]
[348312385,1736441465364,-223.171829,0.00010878,2]
[348312386,1736441465373,-554964.22039138,0.0001088,2]
[348312387,1736441465784,-33188.94314799,0.0001088,2]
[348312388,1736441465802,-664.717,0.0001088,2]
[348312389,1736441465815,-3983.39722806,0.0001088,2]
[348312390,1736441465827,-578.58314681,0.0001088,2]
[348312391,1736441465839,-468.8786624,0.0001088,2]
[348312392,1736441465851,-459.4436244,0.0001088,2]
[348312393,1736441465863,-578.349716,0.0001088,2]
[348312394,1736441465874,-427.42,0.0001088,2]
[348312395,1736441465886,-513.4034575,0.0001088,2]
[348312396,1736441465899,-567.93,0.0001088,2]
[348312397,1736441465911,-475.5,0.0001088,2]
[348312398,1736441465923,-602.72741978,0.0001088,2]
[348312399,1736441465934,-954.6,0.0001088,2]
[348312400,1736441465946,-764.72434,0.0001088,2]
[348312401,1736441465957,-7714.896462,0.0001088,2]
[348312402,1736441465989,-2516.16206871,0.0001088,2]
[348312403,1736441466001,-1263.34797167,0.0001088,2]
[348312404,1736441466019,-345.52999999,0.0001088,2]
[348312405,1736441466030,-3658.8,0.0001088,2]
[348312406,1736441466059,-20252.04194209,0.0001088,2]
[348312407,1736441466071,-24702.30326925,0.0001088,2]
[348312408,1736441466271,-2177.02760022,0.0001088,2]
[348312409,1736441466291,-383.20020393,0.00010617,2]
[348312410,1736441466859,-116.79979607,0.00010617,2]
[348312411,1736441466868,-612.32392107,0.0001088,2]
[348312412,1736441466879,-77864.21427871,0.0001088,2]
[348312413,1736441466891,-1281.46614566,0.0001088,2]
[348312414,1736441466902,-408.24791984,0.0001088,2]
[348312415,1736441466945,-5199.88223325,0.0001088,2]
[348312416,1736441466956,-51114.20135822,0.0001088,2]
[348312417,1736441466968,-740.40033588,0.0001088,2]
[348312418,1736441466980,-414.61260391,0.0001088,2]
[348312419,1736441467003,-384040.64011796,0.0001088,2]
[348312420,1736441467041,-315.95958184,0.0001088,2]
[348312421,1736441467054,-2946.36745992,0.0001088,2]
[348312422,1736441467111,-3950.78810474,0.0001088,2]
[348312423,1736441467123,-568.2678145,0.0001088,2]
[348312424,1736441467135,-493.34,0.0001088,2]
[348312425,1736441467154,-2692.046137,0.0001088,2]
[348312426,1736441467167,-556.78398471,0.0001088,2]
[348312427,1736441678683,150.0,7.975e-05,2]
[348312428,1736441981295,662.46,8.219e-05,2]
[348312429,1736442003393,2938.79576093,8.22e-05,2]
[348312430,1736442003419,4361.20423907,8.22e-05,2]
[348312431,1736442044784,2700.0,8.22e-05,2]
[348312432,1736442044834,700.0,8.22e-05,2]
[348312442,1736442632579,-322.40590145,8.647e-05,2]
[348312443,1736442632590,-250.0,8.825e-05,2]
[348312444,1736442632601,-27.59409855,8.841e-05,2]
[348312445,1736442632637,-375.37590145,8.841e-05,2]
[348312446,1736442632646,-882.7247947,8.868e-05,2]
[348312447,1736442632656,-566.92,8.869e-05,2]
[348312448,1736442632665,-250.0,8.881e-05,2]
[348312449,1736442632675,-1245.67930385,8.902e-05,2]
[348312450,1736442632686,-4615.6,8.902e-05,2]
[348312451,1736442632698,-2301.0,8.902e-05,2]
[348312452,1736442632710,-15737.72069615,8.902e-05,2]
[348312453,1736442632720,-150.0,9.361e-05,2]
[348312454,1736442632730,-150.0,9.412e-05,2]
[348312455,1736442632740,-150.0,9.436e-05,2]
[348312456,1736442632750,-250.0,9.451e-05,2]
[348312457,1736442632759,-7300.0,9.59e-05,2]
[348312458,1736442632769,-2700.0,9.59e-05,2]
[348312459,1736442632779,-700.0,9.59e-05,2]
[348312460,1736442632791,-150.0,9.597e-05,2]
[348312461,1736442632801,-150.0,9.599e-05,2]
[348312462,1736442632811,-74279.0,9.6e-05,2]
[348312463,1736442632821,-7194.3427,9.695e-05,2]
[348312464,1736442632830,-3819.7355,9.695e-05,2]
[348312465,1736442632840,-1447.6891,9.696e-05,2]
[348312466,1736442632851,-519.09804206,9.773e-05,2]
[348312467,1736442632860,-498.87050025,9.773e-05,2]
[348312468,1736442632871,-500.08312248,9.773e-05,2]
[348312469,1736442632881,-631.38,9.794e-05,2]
[348312470,1736442632891,-4782.65,9.794e-05,2]
[348312471,1736442632901,-2135.39,9.794e-05,2]
[348312472,1736442632910,-3557.26,9.794e-05,2]
[348312473,1736442632920,-10090.41,9.794e-05,2]
[348312475,1736442632930,-500.0,9.794e-05,2]
[348312477,1736442632939,-1407.15,9.794e-05,2]
[348312479,1736442632949,-2435.43,9.794e-05,2]
[348312480,1736442632958,-500.0,9.794e-05,2]
[348312481,1736442632967,-549.53,9.794e-05,2]
[348312483,1736442632977,-1855.69,9.794e-05,2]
[348312485,1736442632986,-5304.55,9.794e-05,2]
[348312487,1736442632995,-2939.28,9.794e-05,2]
[348312489,1736442633005,-715.97,9.794e-05,2]
[348312491,1736442633014,-6514.28,9.794e-05,2]
[348312493,1736442633023,-3504.21,9.794e-05,2]
[348312495,1736442633033,-5974.32,9.794e-05,2]
[348312497,1736442633043,-928.67,9.794e-05,2]
[348312499,1736442633052,-1927.53,9.794e-05,2]
[348312501,1736442633062,-2360.9,9.794e-05,2]
[348312502,1736442633072,-1815.95,9.794e-05,2]
[348312504,1736442633081,-5398.17,9.794e-05,2]
[348312506,1736442633095,-500.0,9.794e-05,2]
[348312508,1736442633107,-2517.96,9.794e-05,2]
[348312510,1736442633119,-615.78,9.794e-05,2]
[348312512,1736442633129,-1328.6,9.794e-05,2]
[348312515,1736442633140,-1317.99,9.794e-05,2]
[348312517,1736442633150,-500.0,9.794e-05,2]
[348312518,1736442633159,-1495.08,9.794e-05,2]
[348312521,1736442633169,-500.0,9.794e-05,2]
[348312524,1736442633179,-632.58,9.794e-05,2]
[348312527,1736442633190,-534.44,9.794e-05,2]
[348312530,1736442633200,-951.32,9.794e-05,2]
[348312533,1736442633209,-3884.13,9.794e-05,2]
[348312536,1736442633220,-596.89,9.795e-05,2]
[348312539,1736442633230,-500.0,9.795e-05,2]
[348312541,1736442633239,-500.0,9.795e-05,2]
[348312543,1736442633249,-500.0,9.795e-05,2]
[348312545,1736442633259,-500.0,9.795e-05,2]
[348312547,1736442633268,-500.0,9.795e-05,2]
[348312549,1736442633277,-500.0,9.795e-05,2]
[348312551,1736442633287,-500.0,9.795e-05,2]
[348312553,1736442633296,-500.0,9.795e-05,2]
[348312555,1736442633306,-500.0,9.795e-05,2]
[348312557,1736442633315,-437.69234994,9.795e-05,2]
[348312559,1736442633324,-500.0,9.795e-05,2]
[348312561,1736442633334,-500.0,9.795e-05,2]
[348312563,1736442633346,-500.0,9.795e-05,2]
[348312565,1736442633356,-500.0,9.795e-05,2]
[348312567,1736442633366,-500.0,9.795e-05,2]
[348312569,1736442633375,-500.0,9.795e-05,2]
[348312571,1736442633385,-500.0,9.795e-05,2]
[348312573,1736442633395,-500.0,9.795e-05,2]
[348312574,1736442633404,-500.0,9.795e-05,2]
[348312576,1736442633414,-500.0,9.795e-05,2]
[348312578,1736442633423,-500.0,9.795e-05,2]
[348312580,1736442633433,-500.0,9.795e-05,2]
[348312582,1736442633442,-500.0,9.795e-05,2]
[348312584,1736442633452,-500.0,9.795e-05,2]
[348312586,1736442633461,-500.0,9.795e-05,2]
[348312588,1736442633471,-500.0,9.795e-05,2]
[348312590,1736442633481,-500.0,9.795e-05,2]
[348312592,1736442633491,-500.0,9.795e-05,2]
[348312594,1736442633501,-500.0,9.795e-05,2]
[348312595,1736442633511,-500.0,9.795e-05,2]
[348312596,1736442633521,-500.0,9.795e-05,2]
[348312597,1736442633531,-500.0,9.795e-05,2]
[348312598,1736442633540,-500.0,9.795e-05,2]
[348312600,1736442633550,-500.0,9.795e-05,2]
[348312602,1736442633560,-500.0,9.795e-05,2]
[348312604,1736442633569,-500.0,9.795e-05,2]
[348312606,1736442633579,-500.0,9.795e-05,2]
[348312608,1736442633589,-500.0,9.795e-05,2]
[348312610,1736442633602,-500.0,9.795e-05,2]
[348312612,1736442633612,-500.0,9.795e-05,2]
[348312614,1736442633622,-500.0,9.795e-05,2]
[348312616,1736442633631,-500.0,9.795e-05,2]
[348312618,1736442633641,-703.64,9.795e-05,2]
[348312620,1736442633651,-549.7,9.795e-05,2]
[348312622,1736442633661,-500.0,9.795e-05,2]
[348312624,1736442633670,-500.0,9.795e-05,2]
[348312626,1736442633680,-500.0,9.795e-05,2]
[348312628,1736442633690,-1152.05,9.795e-05,2]
[348312630,1736442633700,-595.51,9.795e-05,2]
[348312632,1736442633710,-500.0,9.795e-05,2]
[348312634,1736442633720,-500.0,9.795e-05,2]
[348312636,1736442633729,-500.0,9.795e-05,2]
[348312638,1736442633739,-730.02,9.795e-05,2]
[348312640,1736442633748,-500.0,9.795e-05,2]
[348312642,1736442633759,-500.0,9.795e-05,2]
[348312644,1736442633768,-500.0,9.795e-05,2]
[348312646,1736442633778,-679.78,9.795e-05,2]
[348312648,1736442633789,-506.06,9.795e-05,2]
[348312650,1736442633802,-500.0,9.795e-05,2]
[348312652,1736442633812,-500.21,9.795e-05,2]
[348312654,1736442633822,-636.82,9.795e-05,2]
[348312656,1736442633832,-500.0,9.795e-05,2]
[348312658,1736442633844,-591.95,9.795e-05,2]
[348312660,1736442633854,-500.0,9.795e-05,2]
[348312662,1736442633864,-500.0,9.795e-05,2]
[348312664,1736442633874,-500.0,9.795e-05,2]
[348312666,1736442633880,-500.0,9.795e-05,2]
[348312668,1736442633891,-500.0,9.795e-05,2]
[348312670,1736442633901,-500.0,9.795e-05,2]
[348312672,1736442633911,-526.02,9.795e-05,2]
[348312674,1736442633920,-500.0,9.795e-05,2]
[348312676,1736442633930,-500.0,9.795e-05,2]
[348312677,1736442633940,-576.02344453,9.795e-05,2]
[348312680,1736442633950,-500.0,9.795e-05,2]
[348312681,1736442633959,-500.0,9.795e-05,2]
[348312683,1736442633969,-500.0,9.795e-05,2]
[348312685,1736442633978,-500.0,9.795e-05,2]
[348312687,1736442633988,-500.0,9.795e-05,2]
[348312689,1736442633998,-500.0,9.795e-05,2]
[348312691,1736442634007,-500.0,9.795e-05,2]
[348312693,1736442634018,-500.0,9.795e-05,2]
[348312695,1736442634028,-682.24,9.795e-05,2]
[348312697,1736442634039,-586.81,9.795e-05,2]
[348312699,1736442634050,-500.0,9.795e-05,2]
[348312701,1736442634060,-500.0,9.795e-05,2]
[348312703,1736442634069,-1316.75,9.795e-05,2]
[348312705,1736442634079,-500.0,9.795e-05,2]
[348312707,1736442634089,-500.0,9.795e-05,2]
[348312709,1736442634101,-500.0,9.795e-05,2]
[348312711,1736442634111,-500.0,9.795e-05,2]
[348312713,1736442634121,-500.0,9.795e-05,2]
[348312715,1736442634131,-270.6864256,9.795e-05,2]
[348312717,1736442634141,-500.0,9.795e-05,2]
[348312719,1736442634151,-500.0,9.795e-05,2]
[348312721,1736442634161,-500.0,9.795e-05,2]
[348312723,1736442634171,-500.0,9.795e-05,2]
[348312725,1736442634182,-500.0,9.795e-05,2]
[348312727,1736442634192,-546.56901685,9.795e-05,2]
[348312729,1736442634202,-500.0,9.795e-05,2]
[348312731,1736442634212,-500.0,9.795e-05,2]
[348312733,1736442634221,-1192.25,9.795e-05,2]
[348312735,1736442634231,-500.0,9.795e-05,2]
[348312736,1736442634241,-500.0,9.795e-05,2]
[348312738,1736442634250,-500.0,9.795e-05,2]
[348312740,1736442634259,-500.0,9.795e-05,2]
[348312742,1736442634269,-500.0,9.795e-05,2]
[348312744,1736442634280,-500.0,9.795e-05,2]
[348312746,1736442634289,-500.0,9.795e-05,2]
[348312748,1736442634299,-500.0,9.795e-05,2]
[348312750,1736442634308,-500.0,9.795e-05,2]
[348312752,1736442634317,-500.0,9.795e-05,2]
[348312753,1736442634327,-500.0,9.795e-05,2]
[348312754,1736442634336,-500.0,9.795e-05,2]
[348312755,1736442634348,-500.0,9.795e-05,2]
[348312756,1736442634357,-500.0,9.795e-05,2]
[348312757,1736442634368,-500.0,9.795e-05,2]
[348312758,1736442634377,-500.0,9.795e-05,2]
[348312759,1736442634387,-500.0,9.795e-05,2]
[348312760,1736442634397,-500.0,9.795e-05,2]
[348312761,1736442634407,-500.0,9.795e-05,2]
[348312762,1736442634672,-500.0,9.795e-05,2]
[348312763,1736442634682,-934.92,9.795e-05,2]
[348312764,1736442634692,-500.0,9.795e-05,2]
[348312765,1736442634701,-500.0,9.795e-05,2]
[348312766,1736442634711,-500.0,9.795e-05,2]
[348312767,1736442634720,-811.49,9.795e-05,2]
[348312768,1736442634729,-500.0,9.795e-05,2]
[348312769,1736442634739,-500.0,9.795e-05,2]
[348312770,1736442634748,-500.0,9.795e-05,2]
[348312771,1736442634757,-500.0,9.795e-05,2]
[348312772,1736442634766,-500.0,9.795e-05,2]
[348312773,1736442634775,-548.2,9.795e-05,2]
[348312774,1736442634784,-402.58328234,9.795e-05,2]
[348312775,1736442634805,-97.41671766,9.795e-05,2]
[348312776,1736442634815,-500.0,9.795e-05,2]
[348312777,1736442634825,-500.0,9.795e-05,2]
[348312778,1736442634837,-500.0,9.795e-05,2]
[348312779,1736442634848,-667.86,9.795e-05,2]
[348312780,1736442634858,-500.0,9.795e-05,2]
[348312781,1736442634869,-500.0,9.795e-05,2]
[348312782,1736442634879,-500.0,9.795e-05,2]
[348312783,1736442634889,-500.0,9.795e-05,2]
[348312784,1736442634898,-500.0,9.795e-05,2]
[348312785,1736442634909,-500.0,9.795e-05,2]
[348312786,1736442634919,-500.0,9.795e-05,2]
[348312787,1736442634928,-500.0,9.795e-05,2]
[348312788,1736442634938,-500.0,9.795e-05,2]
[348312789,1736442634947,-517.02,9.795e-05,2]
[348312790,1736442634957,-500.0,9.795e-05,2]
[348312791,1736442634966,-500.0,9.795e-05,2]
[348312792,1736442634976,-500.0,9.795e-05,2]
[348312793,1736442634986,-500.0,9.795e-05,2]
[348312794,1736442634995,-500.0,9.795e-05,2]
[348312795,1736442635005,-134.65454871,9.795e-05,2]
[348312796,1736442635017,-1147.35545129,9.795e-05,2]
[348312797,1736442635027,-500.0,9.795e-05,2]
[348312798,1736442635038,-500.0,9.795e-05,2]
[348312799,1736442635048,-500.0,9.795e-05,2]
[348312800,1736442635058,-500.0,9.795e-05,2]
[348312801,1736442635069,-500.0,9.795e-05,2]
[348312802,1736442635079,-504.51,9.795e-05,2]
[348312803,1736442635088,-500.0,9.795e-05,2]
[348312804,1736442635103,-500.0,9.795e-05,2]
[348312805,1736442635113,-500.0,9.795e-05,2]
[348312806,1736442635125,-273.90274811,9.795e-05,2]
[348312807,1736442635134,-500.0,9.795e-05,2]
[348312808,1736442635144,-500.0,9.795e-05,2]
[348312809,1736442635154,-500.0,9.795e-05,2]
[348312810,1736442635165,-500.0,9.795e-05,2]
[348312811,1736442635174,-500.0,9.795e-05,2]
[348312812,1736442635184,-772.82,9.795e-05,2]
[348312813,1736442635194,-500.0,9.795e-05,2]
[348312814,1736442635203,-500.0,9.795e-05,2]
[348312815,1736442635213,-500.0,9.795e-05,2]
[348312816,1736442635223,-635.44,9.795e-05,2]
[348312817,1736442635232,-500.0,9.795e-05,2]
[348312818,1736442635242,-500.0,9.795e-05,2]
[348312819,1736442635254,-500.0,9.795e-05,2]
[348312820,1736442635263,-890.92,9.795e-05,2]
[348312821,1736442635273,-500.0,9.795e-05,2]
[348312822,1736442635283,-500.0,9.795e-05,2]
[348312823,1736442635292,-500.0,9.795e-05,2]
[348312824,1736442635303,-500.0,9.795e-05,2]
[348312825,1736442635313,-500.0,9.795e-05,2]
[348312826,1736442635323,-241.01696862,9.795e-05,2]
[348312827,1736442635332,-500.0,9.795e-05,2]
[348312828,1736442635342,-500.0,9.795e-05,2]
[348312829,1736442635353,-400.28445743,9.795e-05,2]
[348312830,1736442635362,-500.0,9.795e-05,2]
[348312831,1736442635371,-500.0,9.795e-05,2]
[348312832,1736442635380,-571.11,9.795e-05,2]
[348312833,1736442635390,-500.0,9.795e-05,2]
[348312834,1736442635400,-500.0,9.795e-05,2]
[348312835,1736442635410,-500.0,9.795e-05,2]
[348312836,1736442635421,-625.17,9.795e-05,2]
[348312837,1736442635431,-508.71,9.795e-05,2]
[348312838,1736442635440,-500.0,9.795e-05,2]
[348312839,1736442635450,-500.0,9.795e-05,2]
[348312840,1736442635459,-500.0,9.795e-05,2]
[348312841,1736442635469,-500.0,9.795e-05,2]
[348312842,1736442635479,-500.0,9.795e-05,2]
[348312843,1736442635489,-500.0,9.795e-05,2]
[348312844,1736442635499,-500.0,9.795e-05,2]
[348312845,1736442635509,-500.0,9.795e-05,2]
[348312846,1736442635519,-279.05658229,9.795e-05,2]
[348312847,1736442635529,-500.0,9.795e-05,2]
[348312848,1736442635538,-554.42,9.795e-05,2]
[348312849,1736442635548,-500.0,9.795e-05,2]
[348312850,1736442635558,-500.0,9.795e-05,2]
[348312851,1736442635567,-500.0,9.795e-05,2]
[348312852,1736442635577,-500.0,9.795e-05,2]
[348312853,1736442635587,-508.0,9.795e-05,2]
[348312854,1736442635598,-500.0,9.795e-05,2]